Cogmind - Beta 11 X6 *** ADVENTURER MODE // 2021.08.04 @ 19:14:39 // Winter2019/RPGLIKE Player: Salamander Result: Destroyed by M Guard with Hellfire Missile Launcher Performance ------------- Evolutions (9) 4500 Regions Visited (28) 5600 Robots Destroyed (274) 1370 Value Destroyed (12079) 12079 Prototype IDs (83) 1660 Alien Tech Used (0) 0 Bonus (3320) 3320 TOTAL SCORE: 28529 Bonus ------- High Alert Combat Kills 1066 Follower Combat Kills 444 Aligned with FarCom 300 Met Data Miner 300 Destroyed Z-Imprinter 1000 A7 Reached Mainframe 300 Friendly Fire -90 Cogmind --------- Core Integrity 0/1800 Matter 300/300 Energy 293/2040 System Corruption 2% Temperature Cool (0) Movement Hovering (90) Ox1 Location -1/Command Parts ------- > --- POWER (2) -------- Quantum Reactor Light Quantum Reactor > --- PROPULSION (6) --- Cooled Antigrav System Cooled Antigrav System Cooled Antigrav System Antigrav Array > --- UTILITY (8) ------ Advanced Heat Sink Experimental Heat Sink Superbattery Advanced Particle Charger Improved Weapon Cycler Reaction Control System Advanced Force Field > --- WEAPON (4) ------- Advanced Variable Charge Gun Enhanced Quantum Rifle Enhanced Quantum Rifle Enhanced Quantum Rifle > --- INVENTORY (6) ---- Protomatter-90 Protomatter-81 Zionite Metafield Generator Quantum Capacitor Peak State ------------ > --- POWER ------------ Quantum Reactor Quantum Reactor > --- PROPULSION ------- Zionite Glidesys II Cooled Antigrav System Cooled Antigrav System Cooled Antigrav System Antigrav Array > --- UTILITY ---------- Experimental Heat Sink Superbattery Experimental Terrain Scan Processor Advanced Particle Charger Improved Weapon Cycler Reaction Control System Improved Phase Shifter Advanced Force Field > --- WEAPON ----------- Advanced Variable Charge Gun Enhanced Quantum Rifle Enhanced Quantum Rifle Enhanced Quantum Rifle > --- INVENTORY -------- Protomatter Protomatter Protomatter Zionite Metafield Generator [Rating: 165] Favorites ----------- Power Micro Nuclear Core Engine Improved Ion Engine Power Core Micro Nuclear Core Reactor Quantum Reactor Propulsion Zionite Glidesys I Leg Aluminum Leg Hover Unit Zionite Glidesys I Utility Advanced Signal Interpreter Device Particle Charger Storage Superbattery Processor Advanced Signal Interpreter Protection Zionite Weapon Casing Weapon Plasma Rifle Energy Gun Plasma Rifle Ballistic Gun Assault Rifle Build | -11 -10 -10 -9 -9 -9 -8 -8 -7 -7 -7 -7 -6 -6 -6 -6 -6 -6 -5 -5 -5 -5 -5 -5 -4 -3 -2 -1 -1 ------- Run | Scr Mat Min Mat Min Exi Min Mat Fac Low Low Dat Pro Fac Low Low Zio Dee Pro Fac Ext Cet Arc Hub Fac Res Res Acc Com Slots Evolved 16 | 3 1 . 2 . . . 1 3 . . . 1 . 1 . . . . 1 1 . . . . 1 . 1 . Power 1 | . . . . . . . . 1 . . . . . . . . . . . . . . . . . . . . Propulsion 5 | 1 . . 1 . . . . 1 . . . . . . . . . . . . . . . . 1 . 1 . Utility 7 | 1 . . 1 . . . 1 1 . . . 1 . . . . . . 1 1 . . . . . . . . Weapon 3 | 1 1 . . . . . . . . . . . . 1 . . . . . . . . . . . . . . Parts Attached 117 | 6 8 . 6 1 . 1 3 7 5 . . 2 9 2 1 1 15 . 5 6 3 1 1 3 13 6 6 6 Power 15 | 1 1 . 1 . . . 1 1 . . . . . . . . 2 . . 3 2 . . . . . 1 2 Engine 2 | 1 1 . . . . . . . . . . . . . . . . . . . . . . . . . . . Core 6 | . . . 1 . . . 1 1 . . . . . . . . . . . 3 . . . . . . . . Reactor 7 | . . . . . . . . . . . . . . . . . 2 . . . 2 . . . . . 1 2 Propulsion 28 | 2 1 . 1 . . . 1 2 . . . . 7 . . . 4 . 1 . . . . . 4 3 1 1 Treads . | . . . . . . . . . . . . . . . . . . . . . . . . . . . . . Leg 2 | 2 . . . . . . . . . . . . . . . . . . . . . . . . . . . . Wheel . | . . . . . . . . . . . . . . . . . . . . . . . . . . . . . Hover 26 | . 1 . 1 . . . 1 2 . . . . 7 . . . 4 . 1 . . . . . 4 3 1 1 Flight . | . . . . . . . . . . . . . . . . . . . . . . . . . . . . . Utility 42 | . 3 . . 1 . 1 1 1 . . . 2 2 1 . . 7 . 4 3 . . 1 2 6 2 2 3 Device 32 | . 3 . . 1 . . 1 1 . . . 2 1 1 . . 4 . 3 3 . . 1 2 4 1 2 2 Storage 2 | . . . . . . . . . . . . . . . . . 1 . 1 . . . . . . . . . Processor 6 | . . . . . . 1 . . . . . . 1 . . . . . . . . . . . 2 1 . 1 Hackware . | . . . . . . . . . . . . . . . . . . . . . . . . . . . . . Protection 2 | . . . . . . . . . . . . . . . . . 2 . . . . . . . . . . . Artifact . | . . . . . . . . . . . . . . . . . . . . . . . . . . . . . Weapon 32 | 3 3 . 4 . . . . 3 5 . . . . 1 1 1 2 . . . 1 1 . 1 3 1 2 . Energy Gun 29 | . 3 . 4 . . . . 3 5 . . . . 1 1 1 2 . . . 1 1 . 1 3 1 2 . Energy Cannon . | . . . . . . . . . . . . . . . . . . . . . . . . . . . . . Ballistic Gun 3 | 3 . . . . . . . . . . . . . . . . . . . . . . . . . . . . Ballistic Cannon . | . . . . . . . . . . . . . . . . . . . . . . . . . . . . . Launcher . | . . . . . . . . . . . . . . . . . . . . . . . . . . . . . Special Weapon . | . . . . . . . . . . . . . . . . . . . . . . . . . . . . . Impact Weapon . | . . . . . . . . . . . . . . . . . . . . . . . . . . . . . Slashing Weapon . | . . . . . . . . . . . . . . . . . . . . . . . . . . . . . Piercing Weapon . | . . . . . . . . . . . . . . . . . . . . . . . . . . . . . Special Melee Weapon . | . . . . . . . . . . . . . . . . . . . . . . . . . . . . . Unidentified Prototypes 19 | . . . 1 . . . . 1 . . . . 1 . . . 10 . . . 1 . . . 2 2 . 1 Parts Lost 4 | . . . . . . . . . . . . . . . . . . . . . . . 1 . 1 . . 2 Power . | . . . . . . . . . . . . . . . . . . . . . . . . . . . . . Propulsion 1 | . . . . . . . . . . . . . . . . . . . . . . . . . . . . 1 Utility 1 | . . . . . . . . . . . . . . . . . . . . . . . . . . . . 1 Weapon 2 | . . . . . . . . . . . . . . . . . . . . . . . 1 . 1 . . . Highest Loss Streak 1 | . . . . . . . . . . . . . . . . . . . . . . . 1 . 1 . . 1 Average Slot Usage (%) 91 | . 83 87 74 80 80 88 95 91 85 85 85 81 97 96 97 100 99 100 100 99 93 94 98 94 96 95 94 93 Engine 1 | . 13 12 7 . . . . . . . . . . . . . . . . . . . . . . . . . Core 5 | . . . 2 10 10 10 9 9 14 14 14 13 13 12 12 12 6 . . 7 4 . . . . . . . Reactor 3 | . . . . . . . . . . . . . . . . . 5 12 11 3 5 11 11 11 10 10 10 9 Hover 21 | . 9 12 13 20 20 20 25 24 21 21 21 20 25 25 25 25 25 25 23 22 22 22 22 22 23 26 25 24 Device 27 | . 21 25 20 20 20 20 24 31 28 28 28 28 33 31 31 31 30 31 29 28 27 27 31 31 30 26 30 33 Storage 1 | . . . . . . . . . . . . . . . . . . . 4 5 5 5 5 5 5 5 5 5 Processor 3 | . . . . . . 8 9 1 . . . . 4 6 6 6 6 6 5 5 5 5 5 5 5 10 4 . Energy Gun 23 | . 24 37 30 30 30 30 27 24 21 21 21 20 20 20 22 25 25 25 23 22 22 22 22 18 20 16 20 20 Naked Turns . | . . . . . . . . . . . . . . . . . . . . . . . . . . . . . Heaviest Build 97 | 7 15 15 19 18 18 18 22 26 32 32 32 34 36 40 40 40 48 48 53 56 73 75 77 78 91 89 92 97 Greatest Support 101 | 25 25 11 17 17 22 22 29 31 31 36 36 36 60 60 60 60 73 73 73 73 73 73 73 73 85 86 101 101 Greatest Overweight (x) 1 | 1 1 1 1 1 1 . . . 1 1 . . . . . . . . . . . 1 1 1 1 1 1 1 Average Overweight (x) . | . . 1 . . . . . . . . . . . . . . . . . . . . . . . . . . Largest Inventory Capacity 6 | 3 3 3 3 3 3 3 3 3 3 3 3 3 5 5 5 5 5 5 5 5 5 5 5 5 6 6 6 6 Average Capacity 4 | 2 3 3 3 3 3 3 3 3 3 3 3 3 4 5 5 5 5 5 5 5 5 5 5 5 5 6 6 6 Most Carried 6 | . 3 3 3 3 3 3 3 3 3 3 3 3 5 5 5 5 5 5 5 5 5 5 5 5 6 6 6 6 Average Carried 4 | . 2 3 3 3 2 3 3 3 3 3 3 3 3 4 5 4 4 4 4 4 5 5 5 4 5 6 4 4 Final Capacity 6 | 3 3 3 3 3 3 3 3 3 3 3 3 3 5 5 5 5 5 5 5 5 5 5 5 5 6 6 6 6 Final Carried 6 | . 3 3 3 3 3 3 3 3 3 3 3 3 4 5 5 5 5 5 5 5 5 5 5 5 6 6 4 5 Class Distribution -------------------- 43% | Scavenger-Gunner 40% | Hacker-Gunner 5% | Scavenger-Mutant 5% | Scavenger-Sprinter 3% | Mutant Dominant Class ---------------- Scavenger-Mutant | -10/Materials Scavenger-Gunner | -10/Mines Scavenger-Gunner | -9/Materials Scavenger-Gunner | -9/Mines Scavenger-Gunner | -9/Exiles Scavenger-Gunner | -8/Mines Scavenger-Gunner | -8/Materials Hacker-Gunner | -7/Factory Hacker-Gunner | -7/Lower Caves Hacker-Gunner | -7/Lower Caves Hacker-Gunner | -7/Data Miner Hacker-Gunner | -6/Proximity Caves Hacker-Gunner | -6/Factory Hacker-Gunner | -6/Lower Caves Hacker-Gunner | -6/Lower Caves Hacker-Gunner | -6/Zion Hacker-Gunner | -6/Deep Caves Scavenger-Sprinter | -5/Proximity Caves Scavenger-Sprinter | -5/Factory Scavenger-Gunner | -5/Extension Scavenger-Gunner | -5/Cetus Scavenger-Gunner | -5/Archives Scavenger-Gunner | -5/Hub_04(d) Scavenger-Gunner | -4/Factory Scavenger-Gunner | -3/Research Scavenger-Gunner | -2/Research Hacker-Gunner | -1/Access Hacker-Gunner | -1/Command Resources | -11 -10 -10 -9 -9 -9 -8 -8 -7 -7 -7 -7 -6 -6 -6 -6 -6 -6 -5 -5 -5 -5 -5 -5 -4 -3 -2 -1 -1 ----------- Run | Scr Mat Min Mat Min Exi Min Mat Fac Low Low Dat Pro Fac Low Low Zio Dee Pro Fac Ext Cet Arc Hub Fac Res Res Acc Com Matter Collected 1425 | 133 227 10 60 10 . 10 30 70 . 50 . 20 90 20 10 . 160 . 22 120 30 . 20 10 140 63 40 80 Remotely . | . . . . . . . . . . . . . . . . . . . . . . . . . . . . . Salvage Created 12603 | . 489 17 573 633 . 500 816 867 64 206 . 339 1241 293 527 . 484 257 323 1141 100 147 298 641 1064 232 183 1168 Parts 573 | . 37 6 30 24 . 14 39 47 2 8 . 5 34 23 18 . 27 27 24 50 7 11 13 33 42 12 10 30 Haulers Intercepted 4 | . 1 . 1 . . . . . . . . . 2 . . . . . . . . . . . . . . . Recyclers Shooed 4 | . . . 1 . . . . . . . . . 1 . . . . . 1 . . . . . . 1 . . Parts Field Recycled . | . . . . . . . . . . . . . . . . . . . . . . . . . . . . . Retrieved Matter . | . . . . . . . . . . . . . . . . . . . . . . . . . . . . . Parts Self-Destructed 79 | . . . . . . . . . 2 8 . 3 . 22 17 . . 27 . . . . . . . . . . Prevented . | . . . . . . . . . . . . . . . . . . . . . . . . . . . . . Kills | -11 -10 -10 -9 -9 -9 -8 -8 -7 -7 -7 -7 -6 -6 -6 -6 -6 -6 -5 -5 -5 -5 -5 -5 -4 -3 -2 -1 -1 ------- Run | Scr Mat Min Mat Min Exi Min Mat Fac Low Low Dat Pro Fac Low Low Zio Dee Pro Fac Ext Cet Arc Hub Fac Res Res Acc Com Combat Hostiles Destroyed 230 | . 14 2 12 11 . 10 14 19 1 6 . 4 8 12 9 . 16 13 5 23 3 4 5 9 13 3 5 9 Guns 211 | . 13 2 11 11 . 8 14 16 1 6 . 3 8 12 6 . 15 13 4 20 3 4 4 9 11 3 5 9 Classes Destroyed 19 | . 5 . 2 5 . 1 . . . . . 1 2 . . . 2 . 1 . . . . . . . . . Worker 12 | . 2 1 . 1 . . 1 3 . . . . 3 . . . . . . . . . . 1 . . . . Builder 2 | . . . . . . . . . . . . . 2 . . . . . . . . . . . . . . . Tunneler 3 | . . . . 2 . . . 1 . . . . . . . . . . . . . . . . . . . . Hauler 4 | . 1 . 1 . . . . . . . . . 2 . . . . . . . . . . . . . . . Recycler 10 | . . . . 1 . 1 2 . . . . . 3 . . . . . 1 2 . . . . . . . . Operator 6 | . . . 1 . . . 1 . . . . . . . . . . . . 1 . . . . 2 . . 1 Watcher 16 | . 2 . 2 . . . 1 1 . . . . 1 . . . . . 2 . . . . 2 1 1 1 2 Swarmer 54 | . 6 . . . . . . 9 . 4 . . . 10 . . . 9 . 6 . . . 1 4 . 5 . Grunt 74 | . 8 2 10 8 . 9 7 5 . 2 . 3 3 . 8 . . . . 7 . . 2 . . . . . Brawler 5 | . . . . 1 . . 1 1 . . . . 1 . . . . . . 1 . . . . . . . . Duelist 1 | . . . . 1 . . . . . . . . . . . . . . . . . . . . . . . . Protector 1 | . . . . 1 . . . . . . . . . . . . . . . . . . . . . . . . Sentry 33 | . . . 2 . . . 5 4 . . . . 2 1 . . . . . 6 . 4 . 3 3 1 . 2 Hunter 18 | . . . . . . 1 1 . 1 . . . . 1 1 . . 1 3 . . . 2 4 1 . . 2 Programmer 11 | . . . . . . . . . . . . . 2 . . . . 2 . . . . . . 3 2 . 2 Heavy 7 | . . . . . . . . . . . . . . . . . . . 2 1 . . 1 1 1 . . 1 Behemoth 4 | . . . . . . . . . . . . 1 . . . . . 1 . 1 . . . . 1 . . . Cetus Guard 3 | . . . . . . . . . . . . . . . . . . . . . 3 . . . . . . . Combat Programmer 2 | . . . . . . . . . . . . . . . . . . . . . . . . . . . . 2 Z-Light 6 | . . . . . . . . . . . . . . . . . 6 . . . . . . . . . . . Assembled 9 | . . . . . . . . . . . . . . . . . 9 . . . . . . . . . . . Guerrilla 1 | . . . . . . . . . . . . . . . . . . . . 1 . . . . . . . . Best Kill Streak 13 | . 5 3 7 8 . 7 8 7 1 4 . 3 11 5 5 . 6 13 7 13 3 4 4 4 4 2 5 5 Combat Bots Only 13 | . 3 2 6 6 . 6 8 7 1 4 . 3 4 5 5 . 6 13 3 11 3 4 4 3 4 2 5 4 Max Kills in Single Turn 3 | . 2 1 2 1 . 1 2 3 1 1 . 1 2 2 1 . 1 3 1 3 2 1 2 1 1 1 2 1 Gunslinging 2 | . 1 . 1 . . . 1 2 . . . . . 1 . . . 2 . 2 1 . 1 . . . 1 . Exploded . | . . . . . . . . . . . . . . . . . . . . . . . . . . . . . Melee . | . . . . . . . . . . . . . . . . . . . . . . . . . . . . . Uniques/NPCs Destroyed 1 | . . . . . . . . . . . . . . . . . 1 . . . . . . . . . . . Z-Imprinter (-6/Deep Caves) Combat | -11 -10 -10 -9 -9 -9 -8 -8 -7 -7 -7 -7 -6 -6 -6 -6 -6 -6 -5 -5 -5 -5 -5 -5 -4 -3 -2 -1 -1 -------- Run | Scr Mat Min Mat Min Exi Min Mat Fac Low Low Dat Pro Fac Low Low Zio Dee Pro Fac Ext Cet Arc Hub Fac Res Res Acc Com Damage Taken 6831 | . 222 42 180 33 . 215 205 367 9 34 . 130 80 122 167 . 655 253 184 253 44 91 296 257 520 46 82 2344 Core 5353 | . 163 34 138 23 . 171 153 272 7 28 . 111 58 93 129 . 521 197 144 195 36 72 237 205 395 38 58 1875 Absorbed by Shields 2308 | . 59 17 68 13 . 84 85 78 3 14 . 46 32 52 66 . 96 103 34 96 17 34 111 88 541 48 90 433 Redirected to Core 4632 | . 136 22 117 23 . 145 136 245 7 17 . 63 58 81 114 . 450 148 144 188 24 59 206 153 361 28 52 1655 Core Remaining (%) 91 | 100 . 100 . . . 100 100 . . . . 93 . . . . . 100 . . . . 73 95 80 76 . . Volleys Fired 485 | . 40 6 31 22 . 19 29 33 1 7 . 10 28 15 13 . 23 15 12 36 7 11 6 19 29 9 15 49 Largest 4 | . 2 3 3 3 . 3 3 3 3 3 . 3 3 4 4 . 4 4 4 4 4 4 4 4 4 4 4 4 Hottest 362 | . 105 145 186 186 . 186 186 183 183 225 . 225 225 305 305 . 300 283 283 283 283 288 307 328 341 362 362 362 Shots Fired 1570 | . 80 18 79 66 . 57 79 99 3 21 . 30 84 48 49 . 90 60 48 144 22 33 24 62 110 28 49 187 Gun 1570 | . 80 18 79 66 . 57 79 99 3 21 . 30 84 48 49 . 90 60 48 144 22 33 24 62 110 28 49 187 Cannon . | . . . . . . . . . . . . . . . . . . . . . . . . . . . . . Launcher . | . . . . . . . . . . . . . . . . . . . . . . . . . . . . . Special . | . . . . . . . . . . . . . . . . . . . . . . . . . . . . . Kinetic 10 | . 10 . . . . . . . . . . . . . . . . . . . . . . . . . . . Thermal 1560 | . 70 18 79 66 . 57 79 99 3 21 . 30 84 48 49 . 90 60 48 144 22 33 24 62 110 28 49 187 Explosive . | . . . . . . . . . . . . . . . . . . . . . . . . . . . . . Electromagnetic . | . . . . . . . . . . . . . . . . . . . . . . . . . . . . . Robot Hit Streak 75 | . 18 20 25 57 . 59 58 75 5 21 . 32 31 12 15 . 31 48 48 27 23 54 56 21 41 18 18 43 Robot Miss Streak 4 | . 4 . 1 . . 1 1 2 . . . 1 2 2 1 . 1 1 1 1 . . 1 2 2 1 1 2 Penetration Max . | . . . . . . . . . . . . . . . . . . . . . . . . . . . . . Secondary Targets 58 | . 3 . 2 2 . 3 6 4 . 2 . 1 1 3 3 . 5 4 . 5 2 2 2 3 2 1 1 1 Max Gunslinging Chain 2 | . 1 . 1 1 . 1 1 2 . 1 . 1 1 1 1 . 1 2 . 2 1 1 1 1 1 1 1 1 Shots Hit Robots 1215 | . 63 17 59 55 . 51 66 81 3 16 . 27 63 29 45 . 61 50 32 116 21 31 20 45 84 18 21 141 Core Hits 477 | . 26 6 20 23 . 21 30 31 2 6 . 9 29 14 19 . 26 17 14 43 10 11 9 21 30 9 8 43 Critical Kills . | . . . . . . . . . . . . . . . . . . . . . . . . . . . . . Critical Parts Destroyed 1 | . 1 . . . . . . . . . . . . . . . . . . . . . . . . . . . Critical Strikes 66 | . 5 . 3 4 . 3 2 8 1 2 . 1 5 5 2 . 7 4 5 6 1 1 . 1 . . . . Burn 65 | . 4 . 3 4 . 3 2 8 1 2 . 1 5 5 2 . 7 4 5 6 1 1 . 1 . . . . Destroy 1 | . 1 . . . . . . . . . . . . . . . . . . . . . . . . . . . Melee Attacks . | . . . . . . . . . . . . . . . . . . . . . . . . . . . . . Impact . | . . . . . . . . . . . . . . . . . . . . . . . . . . . . . Slashing . | . . . . . . . . . . . . . . . . . . . . . . . . . . . . . Piercing . | . . . . . . . . . . . . . . . . . . . . . . . . . . . . . Sneak Attacks . | . . . . . . . . . . . . . . . . . . . . . . . . . . . . . Combat Hostiles . | . . . . . . . . . . . . . . . . . . . . . . . . . . . . . Follow-up Attacks . | . . . . . . . . . . . . . . . . . . . . . . . . . . . . . Damage Inflicted 36328 | . 859 218 909 902 . 913 1259 1834 69 478 . 835 1905 865 1169 . 1941 1902 1210 4369 825 1276 800 1958 3861 879 861 4231 Guns 36259 | . 859 218 909 902 . 913 1259 1834 69 478 . 835 1905 865 1169 . 1941 1902 1210 4369 825 1276 800 1958 3792 879 861 4231 Cannons . | . . . . . . . . . . . . . . . . . . . . . . . . . . . . . Explosions 68 | . . . . . . . . . . . . . . . . . . . . . . . . . 68 . . . Melee . | . . . . . . . . . . . . . . . . . . . . . . . . . . . . . Ramming 1 | . . . . . . . . . . . . . . . . . . . . . . . . . 1 . . . Kinetic 96 | . 96 . . . . . . . . . . . . . . . . . . . . . . . . . . . Thermal 36163 | . 763 218 909 902 . 913 1259 1834 69 478 . 835 1905 865 1169 . 1941 1902 1210 4369 825 1276 800 1958 3792 879 861 4231 Explosive 68 | . . . . . . . . . . . . . . . . . . . . . . . . . 68 . . . Electromagnetic . | . . . . . . . . . . . . . . . . . . . . . . . . . . . . . Impact . | . . . . . . . . . . . . . . . . . . . . . . . . . . . . . Slashing . | . . . . . . . . . . . . . . . . . . . . . . . . . . . . . Piercing . | . . . . . . . . . . . . . . . . . . . . . . . . . . . . . Highest Corruption 2 | . 1 1 . . . . 1 . . . . . . . . . . 1 . . . . . . . . . 2 Average Corruption 1 | . 1 1 . . . . 1 . . . . . . . . . . 1 . . . . . . . . . 1 Corruption Purged . | . . . . . . . . . . . . . . . . . . . . . . . . . . . . . Effects 7 | . 4 1 . . . . . . . . . . . . . . . . . . . . . . . . . 2 Message Errors 5 | . 4 . . . . . . . . . . . . . . . . . . . . . . . . . . 1 Data Loss (minor) 1 | . . 1 . . . . . . . . . . . . . . . . . . . . . . . . . . Weapon Failures 1 | . . . . . . . . . . . . . . . . . . . . . . . . . . . . 1 Overload Shots 3 | . . . . . . . . . . . . . . . . . . . . . . . . . . . 3 . Overflow Damage . | . . . . . . . . . . . . . . . . . . . . . . . . . . . . . Projectiles . | . . . . . . . . . . . . . . . . . . . . . . . . . . . . . Explosions . | . . . . . . . . . . . . . . . . . . . . . . . . . . . . . Melee . | . . . . . . . . . . . . . . . . . . . . . . . . . . . . . Knockbacks . | . . . . . . . . . . . . . . . . . . . . . . . . . . . . . Impact . | . . . . . . . . . . . . . . . . . . . . . . . . . . . . . Kinetic . | . . . . . . . . . . . . . . . . . . . . . . . . . . . . . Secondary . | . . . . . . . . . . . . . . . . . . . . . . . . . . . . . Self-Inflicted Damage 58 | . . . . . . . . . . . . . . . . . . . . . . . . . 58 . . . Shots 1 | . . . . . . . . . . . . . . . . . . . . . . . . . 1 . . . Rammed 1 | . . . . . . . . . . . . . . . . . . . . . . . . . 1 . . . Targets Rammed 1 | . . . . . . . . . . . . . . . . . . . . . . . . . 1 . . . Kicked . | . . . . . . . . . . . . . . . . . . . . . . . . . . . . . Crushed . | . . . . . . . . . . . . . . . . . . . . . . . . . . . . . Highest Temperature 446 | . . 74 2 . . 8 9 126 54 194 . 281 40 32 64 . 226 375 229 377 76 186 129 446 349 164 416 425 Average Temperature 95 | . . 35 2 . . 8 9 42 40 91 . 111 17 14 39 . 79 143 107 108 57 82 64 106 119 66 165 122 Received Heat Transfer 1544 | . 101 30 104 22 . 164 96 199 . 12 . 81 28 12 85 . 321 . . 90 . 12 12 25 30 . . 120 Effects 6 | . . . . . . . . . . . . . . . . . . . 1 3 . . . . . . 2 . Shutdowns 1 | . . . . . . . . . . . . . . . . . . . . . . . . . . . 1 . Energy Bleed 2 | . . . . . . . . . . . . . . . . . . . 1 1 . . . . . . . . Matter Decay 1 | . . . . . . . . . . . . . . . . . . . . 1 . . . . . . . . Short Circuit 2 | . . . . . . . . . . . . . . . . . . . . 1 . . . . . . 1 . Siege Activations . | . . . . . . . . . . . . . . . . . . . . . . . . . . . . . Robots Corrupted . | . . . . . . . . . . . . . . . . . . . . . . . . . . . . . Combat Hostiles . | . . . . . . . . . . . . . . . . . . . . . . . . . . . . . Parts Fried . | . . . . . . . . . . . . . . . . . . . . . . . . . . . . . Impact Corruptions . | . . . . . . . . . . . . . . . . . . . . . . . . . . . . . Robots Melted 20 | . 1 . 1 . . 2 . 3 . . . 1 1 . 3 . 1 . 1 3 . . 1 . 2 . . . Combat Hostiles 19 | . 1 . 1 . . 2 . 3 . . . 1 . . 3 . 1 . 1 3 . . 1 . 2 . . . Parts Melted 164 | . 1 1 4 8 . 6 5 12 1 1 . 5 12 6 2 . 5 10 12 27 2 3 4 7 11 4 1 14 Heat Transferred 51737 | . 2032 485 2201 2181 . 2072 2590 3626 185 1000 . 1450 3650 1975 2174 . 2836 2538 1968 5811 981 1325 703 1739 3219 703 740 3553 Parts Sabotaged . | . . . . . . . . . . . . . . . . . . . . . . . . . . . . . Parts Stolen . | . . . . . . . . . . . . . . . . . . . . . . . . . . . . . Parts Stripped . | . . . . . . . . . . . . . . . . . . . . . . . . . . . . . Power Chain Reactions . | . . . . . . . . . . . . . . . . . . . . . . . . . . . . . Missiles Intercepted . | . . . . . . . . . . . . . . . . . . . . . . . . . . . . . Alert | -11 -10 -10 -9 -9 -9 -8 -8 -7 -7 -7 -7 -6 -6 -6 -6 -6 -6 -5 -5 -5 -5 -5 -5 -4 -3 -2 -1 -1 ------- Run | Scr Mat Min Mat Min Exi Min Mat Fac Low Low Dat Pro Fac Low Low Zio Dee Pro Fac Ext Cet Arc Hub Fac Res Res Acc Com Peak Influence 943 | . 286 149 457 405 . 245 594 790 . . . . 339 . . . . . 422 943 465 290 195 442 673 397 382 628 Initial 361 | . . 94 48 150 . . 80 231 . . . . 54 . . . . . 183 178 361 156 84 78 200 256 207 214 Average 296 | . 146 119 217 309 . 118 348 500 . . . . 177 . . . . . 318 512 443 263 70 248 368 312 284 434 Maximum Alert Level 3 | . 1 . 2 2 . 1 2 3 . . . . 1 . . . . . 2 3 2 1 . 2 2 1 1 2 Low Security (%) 31 | 100 68 100 50 24 . 79 14 . . . . . 57 . . . . . 17 3 . 10 100 39 2 . . . Level 1 43 | . 31 . 36 26 . 20 58 32 . . . . 42 . . . . . 62 34 20 89 . 53 67 100 100 39 Level 2 23 | . . . 12 49 . . 27 63 . . . . . . . . . . 19 36 79 . . 6 30 . . 60 Level 3 2 | . . . . . . . . 3 . . . . . . . . . . . 25 . . . . . . . . Level 4 . | . . . . . . . . . . . . . . . . . . . . . . . . . . . . . Level 5 . | . . . . . . . . . . . . . . . . . . . . . . . . . . . . . High Security . | . . . . . . . . . . . . . . . . . . . . . . . . . . . . . Max Security . | . . . . . . . . . . . . . . . . . . . . . . . . . . . . . Squads Dispatched 30 | . 2 . 3 2 . . 2 1 . . . . 2 . . . . . 3 1 . . 4 3 3 . 2 2 Investigation 6 | . 2 . . 1 . . 1 . . . . . . . . . . . . . . . . . 1 . . 1 Extermination 4 | . . . . . . . . . . . . . 1 . . . . . . . . . . 1 1 . 1 . Reinforcement 17 | . . . 3 . . . 1 . . . . . 1 . . . . . 3 1 . . 3 2 1 . 1 1 Assault 2 | . . . . 1 . . . 1 . . . . . . . . . . . . . . . . . . . . Garrison 1 | . . . . . . . . . . . . . . . . . . . . . . . 1 . . . . . Intercept . | . . . . . . . . . . . . . . . . . . . . . . . . . . . . . Construction Impeded 1 | . . . . . . . . . . . . . 1 . . . . . . . . . . . . . . . Haulers Reinforced 6 | . . . . . . . . . . . . . . . . . . . 2 . . . 1 1 1 . . 1 Active Scanning Responses . | . . . . . . . . . . . . . . . . . . . . . . . . . . . . . Cargo Convoy Interrupts . | . . . . . . . . . . . . . . . . . . . . . . . . . . . . . Stealth | -11 -10 -10 -9 -9 -9 -8 -8 -7 -7 -7 -7 -6 -6 -6 -6 -6 -6 -5 -5 -5 -5 -5 -5 -4 -3 -2 -1 -1 --------- Run | Scr Mat Min Mat Min Exi Min Mat Fac Low Low Dat Pro Fac Low Low Zio Dee Pro Fac Ext Cet Arc Hub Fac Res Res Acc Com Distress Signals 8 | . . . 2 . . . . . . . . . . . . . . . . . 1 . . 1 1 . . 3 Communications Jammed . | . . . . . . . . . . . . . . . . . . . . . . . . . . . . . Distress Signals . | . . . . . . . . . . . . . . . . . . . . . . . . . . . . . Times Spotted 285 | . 18 2 17 11 . 10 18 20 1 6 . 5 9 12 8 . 14 13 7 29 5 4 11 13 26 5 8 13 Peak Tracking Total 7 | . 4 1 5 5 . 3 6 7 1 3 . 4 3 4 4 . 5 5 2 6 5 2 4 5 7 3 6 4 Tactical Retreats 6 | . . . . . . . . 1 . . . . . . . . . . . 2 . . 1 1 1 . . . Traps | -11 -10 -10 -9 -9 -9 -8 -8 -7 -7 -7 -7 -6 -6 -6 -6 -6 -6 -5 -5 -5 -5 -5 -5 -4 -3 -2 -1 -1 ------- Run | Scr Mat Min Mat Min Exi Min Mat Fac Low Low Dat Pro Fac Low Low Zio Dee Pro Fac Ext Cet Arc Hub Fac Res Res Acc Com Traps Triggered 12 | . 2 . . . . . 1 2 . . . . 1 . . . . . . 2 . . . 2 1 . . 1 Indirectly . | . . . . . . . . . . . . . . . . . . . . . . . . . . . . . Trap Hack Attempts . | . . . . . . . . . . . . . . . . . . . . . . . . . . . . . Triggered . | . . . . . . . . . . . . . . . . . . . . . . . . . . . . . Disarmed . | . . . . . . . . . . . . . . . . . . . . . . . . . . . . . Reprogrammed 9 | . . . . . . . 3 . . . . . 6 . . . . . . . . . . . . . . . Reused . | . . . . . . . . . . . . . . . . . . . . . . . . . . . . . Traps Extracted . | . . . . . . . . . . . . . . . . . . . . . . . . . . . . . Installed . | . . . . . . . . . . . . . . . . . . . . . . . . . . . . . Triggered 1 | . . . . . . . . . . 1 . . . . . . . . . . . . . . . . . . Machines | -11 -10 -10 -9 -9 -9 -8 -8 -7 -7 -7 -7 -6 -6 -6 -6 -6 -6 -5 -5 -5 -5 -5 -5 -4 -3 -2 -1 -1 ---------- Run | Scr Mat Min Mat Min Exi Min Mat Fac Low Low Dat Pro Fac Low Low Zio Dee Pro Fac Ext Cet Arc Hub Fac Res Res Acc Com Machines Disabled 17 | . . . 2 1 . . 2 . . . . . 2 1 . . . . . 4 . 1 1 . 2 . . 1 Max in Single Turn 1 | . . . 1 1 . . 1 . . . . . 1 1 . . . . . 1 . 1 1 . 1 . . 1 Garrison Access 4 | . . . . . . . . 1 . . . . 1 . . . . . . . . . . . 1 1 . . Machines Sabotaged . | . . . . . . . . . . . . . . . . . . . . . . . . . . . . . Garrisons Compromised . | . . . . . . . . . . . . . . . . . . . . . . . . . . . . . Overloaded Fab Kills . | . . . . . . . . . . . . . . . . . . . . . . . . . . . . . Fab Network Shutdowns . | . . . . . . . . . . . . . . . . . . . . . . . . . . . . . Hacking | -11 -10 -10 -9 -9 -9 -8 -8 -7 -7 -7 -7 -6 -6 -6 -6 -6 -6 -5 -5 -5 -5 -5 -5 -4 -3 -2 -1 -1 --------- Run | Scr Mat Min Mat Min Exi Min Mat Fac Low Low Dat Pro Fac Low Low Zio Dee Pro Fac Ext Cet Arc Hub Fac Res Res Acc Com Machines Accessed 52 | . 6 . 2 1 2 . 7 5 1 . 3 . 8 2 . . . . 1 2 1 . 2 . 2 3 . 4 Terminals 36 | . 5 . 2 1 . . 6 3 . . . . 6 . . . . . 1 2 1 . 2 . 1 2 . 4 Fabricators 2 | . . . . . . . . 1 . . . . 1 . . . . . . . . . . . . . . . Repair Stations . | . . . . . . . . . . . . . . . . . . . . . . . . . . . . . Recycling Units 2 | . 1 . . . . . 1 . . . . . . . . . . . . . . . . . . . . . Scanalyzers . | . . . . . . . . . . . . . . . . . . . . . . . . . . . . . Garrison Access 4 | . . . . . . . . 1 . . . . 1 . . . . . . . . . . . 1 1 . . Total Hacks 195 | . 19 . 9 11 2 . 39 16 1 . 21 . 39 2 . . . . 1 6 1 . 13 . 3 6 . 6 Successful 148 | . 14 . 4 7 2 . 34 13 1 . 21 . 29 2 . . . . 1 5 1 . 8 . 2 3 . 1 Failed 47 | . 5 . 5 4 . . 5 3 . . . . 10 . . . . . . 1 . . 5 . 1 3 . 5 Catastrophic 7 | . . . 2 . . . . . . . . . 2 . . . . . . . . . 2 . . 1 . . Database Lockouts . | . . . . . . . . . . . . . . . . . . . . . . . . . . . . . Manual 84 | . 9 . 8 10 1 . 23 4 . . . . 16 . . 4 . . . 2 . . 5 . . . . 2 Terminals 156 | . 18 . 9 11 . . 38 13 . . . . 35 . . . . . 1 6 1 . 13 . 1 4 . 6 Fabricators 4 | . . . . . . . . 1 . . . . 3 . . . . . . . . . . . . . . . Repair Stations . | . . . . . . . . . . . . . . . . . . . . . . . . . . . . . Recycling Units 2 | . 1 . . . . . 1 . . . . . . . . . . . . . . . . . . . . . Scanalyzers . | . . . . . . . . . . . . . . . . . . . . . . . . . . . . . Garrison Access 7 | . . . . . . . . 2 . . . . 1 . . . . . . . . . . . 2 2 . . Terminal Hacks 106 | . 9 . 1 7 2 . 23 8 1 . 21 . 18 2 . . . . 1 4 1 . 4 . 1 2 . 1 Record 8 | . . . . . 1 . . . . . 6 . . 1 . . . . . . . . . . . . . . Part Schematic 11 | . . . . . . . . 2 . . 7 . 1 . . . . . . . . . . . . 1 . . Robot Schematic 5 | . . . . . . . . . . . 5 . . . . . . . . . . . . . . . . . Robot Analysis 7 | . 3 . . . . . 4 . . . . . . . . . . . . . . . . . . . . . Prototype ID Bank 25 | . 3 . 1 6 . . 6 2 . . 3 . 3 . . . . . . . . . 1 . . . . . Open Door 4 | . . . . . . . . . 1 . . . . 1 . . . . 1 . 1 . . . . . . . Level Access Points 2 | . . . . . . . . . . . . . 1 . . . . . . . . . . . 1 . . . Branch Access Points 3 | . . . . . . . 1 1 . . . . 1 . . . . . . . . . . . . . . . Emergency Access Points 3 | . . . . . . . 1 . . . . . 1 . . . . . . . . . 1 . . . . . Machine Index 3 | . . . . . . . . . . . . . 1 . . . . . . . . . 1 . . 1 . . Terminal Index 1 | . 1 . . . . . . . . . . . . . . . . . . . . . . . . . . . Alert Level 2 | . . . . . . . 1 . . . . . . . . . . . . 1 . . . . . . . . Unreport Threat 2 | . . . . . . . . . . . . . . . . . . . . 1 . . 1 . . . . . Locate Traps 9 | . 1 . . . . . 3 1 . . . . 4 . . . . . . . . . . . . . . . Reprogram Traps 2 | . . . . . . . 1 . . . . . 1 . . . . . . . . . . . . . . . Hauler Manifests 4 | . . . . . . . 2 1 . . . . 1 . . . . . . . . . . . . . . . Registered Components 3 | . . . . . . . 1 . . . . . 1 . . . . . . 1 . . . . . . . . Zone Layout 10 | . 1 . . 1 . . 3 1 . . . . 3 . . . . . . 1 . . . . . . . . EX-Prototype ID Bank 1 | . . . . . 1 . . . . . . . . . . . . . . . . . . . . . . . Disengage Seal 1 | . . . . . . . . . . . . . . . . . . . . . . . . . . . . 1 Fabricator Hacks 2 | . . . . . . . . . . . . . 2 . . . . . . . . . . . . . . . Load Schematic 1 | . . . . . . . . . . . . . 1 . . . . . . . . . . . . . . . Build 1 | . . . . . . . . . . . . . 1 . . . . . . . . . . . . . . . Repair Station Hacks . | . . . . . . . . . . . . . . . . . . . . . . . . . . . . . Recycling Unit Hacks . | . . . . . . . . . . . . . . . . . . . . . . . . . . . . . Scanalyzer . | . . . . . . . . . . . . . . . . . . . . . . . . . . . . . Garrison Access Hacks 4 | . . . . . . . . 1 . . . . 1 . . . . . . . . . . . 1 1 . . Seal Access 4 | . . . . . . . . 1 . . . . 1 . . . . . . . . . . . 1 1 . . Unauthorized Hacks 36 | . 5 . 3 . . . 11 4 . . . . 8 . . . . . . 1 . . 4 . . . . . Terminals 33 | . 4 . 3 . . . 10 3 . . . . 8 . . . . . . 1 . . 4 . . . . . Track 10 | . 1 . 1 . . . 3 1 . . . . 3 . . . . . . . . . 1 . . . . . Assimilate 1 | . . . . . . . . . . . . . . . . . . . . . . . 1 . . . . . Botnet 13 | . 3 . 1 . . . 4 1 . . . . 3 . . . . . . 1 . . . . . . . . Detonate 2 | . . . . . . . 1 . . . . . . . . . . . . . . . 1 . . . . . Disrupt 2 | . . . . . . . 1 . . . . . 1 . . . . . . . . . . . . . . . Operators 5 | . . . 1 . . . 1 1 . . . . 1 . . . . . . . . . 1 . . . . . Fabricators 1 | . . . . . . . . 1 . . . . . . . . . . . . . . . . . . . . Haulers 1 | . . . . . . . . 1 . . . . . . . . . . . . . . . . . . . . Repair Stations . | . . . . . . . . . . . . . . . . . . . . . . . . . . . . . Recycling Units 2 | . 1 . . . . . 1 . . . . . . . . . . . . . . . . . . . . . Tunnel 2 | . 1 . . . . . 1 . . . . . . . . . . . . . . . . . . . . . Scanalyzers . | . . . . . . . . . . . . . . . . . . . . . . . . . . . . . Garrison Access . | . . . . . . . . . . . . . . . . . . . . . . . . . . . . . Data Cores Recovered 2 | . . . . . . . . . . . . . . . . . . . . . . . . . 1 . . 1 Used 2 | . . . . . . . . . . . . . . . . . . . . . . . . . 1 . . 1 Hacking Detections 33 | . 5 . 2 1 . . 4 3 . . . . 6 . . . . . . 2 . . 2 . 1 3 . 4 Full Trace Events 5 | . 2 . 1 1 . . . . . . . . . . . . . . . . . . . . . . . 1 Feedback Events . | . . . . . . . . . . . . . . . . . . . . . . . . . . . . . Feedback Blocked . | . . . . . . . . . . . . . . . . . . . . . . . . . . . . . Robot Schematics Acquired 5 | . . . . . . . . . . . 5 . . . . . . . . . . . . . . . . . Robots Built . | . . . . . . . . . . . . . . . . . . . . . . . . . . . . . Matter . | . . . . . . . . . . . . . . . . . . . . . . . . . . . . . Time . | . . . . . . . . . . . . . . . . . . . . . . . . . . . . . Total Robot Build Rating . | . . . . . . . . . . . . . . . . . . . . . . . . . . . . . Part Schematics Acquired 11 | . . . . . . . . 2 . . 7 . 1 . . . . . . . . . . . . 1 . . Parts Built 2 | . . . . . . . . . . . . . 2 . . . . . . . . . . . . . . . Matter 190 | . . . . . . . . . . . . . 190 . . . . . . . . . . . . . . . Time 47 | . . . . . . . . . . . . . 47 . . . . . . . . . . . . . . . Total Part Build Rating 10 | . . . . . . . . . . . . . 10 . . . . . . . . . . . . . . . Parts Repaired . | . . . . . . . . . . . . . . . . . . . . . . . . . . . . . Time . | . . . . . . . . . . . . . . . . . . . . . . . . . . . . . Parts Recycled . | . . . . . . . . . . . . . . . . . . . . . . . . . . . . . Recycled Matter . | . . . . . . . . . . . . . . . . . . . . . . . . . . . . . Retrieved Matter . | . . . . . . . . . . . . . . . . . . . . . . . . . . . . . Retrieved Components . | . . . . . . . . . . . . . . . . . . . . . . . . . . . . . Parts Scanalyzed . | . . . . . . . . . . . . . . . . . . . . . . . . . . . . . Part Schematics Acquired . | . . . . . . . . . . . . . . . . . . . . . . . . . . . . . Parts Damaged . | . . . . . . . . . . . . . . . . . . . . . . . . . . . . . Bothacking | -11 -10 -10 -9 -9 -9 -8 -8 -7 -7 -7 -7 -6 -6 -6 -6 -6 -6 -5 -5 -5 -5 -5 -5 -4 -3 -2 -1 -1 ------------ Run | Scr Mat Min Mat Min Exi Min Mat Fac Low Low Dat Pro Fac Low Low Zio Dee Pro Fac Ext Cet Arc Hub Fac Res Res Acc Com Used RIF Installer . | . . . . . . . . . . . . . . . . . . . . . . . . . . . . . Robots Hacked . | . . . . . . . . . . . . . . . . . . . . . . . . . . . . . Non-combat . | . . . . . . . . . . . . . . . . . . . . . . . . . . . . . Combat . | . . . . . . . . . . . . . . . . . . . . . . . . . . . . . Robot Hacks Applied . | . . . . . . . . . . . . . . . . . . . . . . . . . . . . . Relay Couplers Released . | . . . . . . . . . . . . . . . . . . . . . . . . . . . . . Robots Rewired 8 | . . . . . . . . . . . . . . . . . . . . 8 . . . . . . . . Allies Hacked . | . . . . . . . . . . . . . . . . . . . . . . . . . . . . . Hacks Repelled . | . . . . . . . . . . . . . . . . . . . . . . . . . . . . . Allies | -11 -10 -10 -9 -9 -9 -8 -8 -7 -7 -7 -7 -6 -6 -6 -6 -6 -6 -5 -5 -5 -5 -5 -5 -4 -3 -2 -1 -1 -------- Run | Scr Mat Min Mat Min Exi Min Mat Fac Low Low Dat Pro Fac Low Low Zio Dee Pro Fac Ext Cet Arc Hub Fac Res Res Acc Com Total Allies 18 | . . . . 1 . . . . . . . 1 . . . . . . . 14 . . . . . . . 2 Largest Group 10 | . . . . 1 . . . . . . . 1 1 1 1 1 1 1 . 10 1 1 . . . . . 2 Highest-Rated Group 360 | . . . . 31 . . . . . . . 95 95 95 95 95 95 95 . 360 156 156 . . . . . 190 Highest-Rated Ally 156 | . . . . 31 . . . . . . . 95 95 95 95 95 95 95 . 156 156 156 . . . . . 95 Total Orders . | . . . . . . . . . . . . . . . . . . . . . . . . . . . . . Ally Attacks 116 | . . . . 10 . . . . . . . 1 1 . 1 . 19 12 . 60 7 1 . . . . . 4 Total Damage 2607 | . . . . 103 . . . . . . . 45 . . 48 . 460 316 . 1340 229 21 . . . . . 45 Kills 18 | . . . . . . . . . . . . . . . 1 . 4 1 . 10 2 . . . . . . . Allies Corrupted . | . . . . . . . . . . . . . . . . . . . . . . . . . . . . . Allies Melted . | . . . . . . . . . . . . . . . . . . . . . . . . . . . . . Intel | -11 -10 -10 -9 -9 -9 -8 -8 -7 -7 -7 -7 -6 -6 -6 -6 -6 -6 -5 -5 -5 -5 -5 -5 -4 -3 -2 -1 -1 ------- Run | Scr Mat Min Mat Min Exi Min Mat Fac Low Low Dat Pro Fac Low Low Zio Dee Pro Fac Ext Cet Arc Hub Fac Res Res Acc Com Robot Analysis Total 7 | . 3 . . . . . 4 . . . . . . . . . . . . . . . . . . . . . Derelict Logs Recovered 10 | . . 2 . 1 . . . . 1 2 . 2 . 1 . 1 . . . . . . . . . . . . Drone Launches . | . . . . . . . . . . . . . . . . . . . . . . . . . . . . . Drone Recoveries . | . . . . . . . . . . . . . . . . . . . . . . . . . . . . . Exploration | -11 -10 -10 -9 -9 -9 -8 -8 -7 -7 -7 -7 -6 -6 -6 -6 -6 -6 -5 -5 -5 -5 -5 -5 -4 -3 -2 -1 -1 ------------- Run | Scr Mat Min Mat Min Exi Min Mat Fac Low Low Dat Pro Fac Low Low Zio Dee Pro Fac Ext Cet Arc Hub Fac Res Res Acc Com Turns Passed 8583 | 54 760 271 307 392 229 178 332 528 211 184 40 290 463 325 163 425 437 189 108 401 81 96 178 273 840 160 270 398 Spaces Moved 9363 | 43 536 205 202 461 262 174 405 745 269 302 77 471 579 370 161 602 552 163 214 413 85 70 127 227 599 249 326 474 Core 11 | 11 . . . . . . . . . . . . . . . . . . . . . . . . . . . . Treads . | . . . . . . . . . . . . . . . . . . . . . . . . . . . . . Legs 199 | 32 167 . . . . . . . . . . . . . . . . . . . . . . . . . . . Wheels . | . . . . . . . . . . . . . . . . . . . . . . . . . . . . . Hover 9153 | . 369 205 202 461 262 174 405 745 269 302 77 471 579 370 161 602 552 163 214 413 85 70 127 227 599 249 326 474 Flight . | . . . . . . . . . . . . . . . . . . . . . . . . . . . . . Fastest Speed 24 | 50 60 120 56 56 56 56 52 52 52 52 52 52 48 63 63 63 24 24 24 24 48 48 48 48 44 38 38 38 Average Speed 64 | 105 112 120 92 67 86 56 52 52 74 53 52 52 52 63 63 63 36 24 24 45 48 82 117 72 110 49 60 38 Slowest Speed 120 | 120 120 120 120 116 116 56 56 52 112 112 52 52 63 63 63 63 63 24 26 48 48 118 118 118 118 96 96 98 Overloaded Moves . | . . . . . . . . . . . . . . . . . . . . . . . . . . . . . Propulsion Burnouts . | . . . . . . . . . . . . . . . . . . . . . . . . . . . . . Robots Hopped . | . . . . . . . . . . . . . . . . . . . . . . . . . . . . . Cave-ins Triggered . | . . . . . . . . . . . . . . . . . . . . . . . . . . . . . Exploration Rate (%) 46 | 3 87 56 37 94 70 61 40 18 43 53 71 71 20 60 43 79 70 44 11 77 59 75 19 10 22 9 13 22 Regions Visited 28 Branch Regions 18 Pre-discovered Areas 7 | . 1 . . . 1 . 1 . 1 . 1 1 . 1 . . . . . . . . . . . . . . Known Exits Taken 17 | . . 1 . . . 1 . 1 . . . . 1 1 1 1 1 1 1 1 1 1 1 1 1 1 . . Unknown Exits Taken 11 | 1 1 . 1 1 1 . 1 . 1 1 1 1 . . . . . . . . . . . . . . 1 . Scrap Searched 27 | . . 2 . 4 . 1 . . 1 4 . . . 10 1 3 . 1 . . . . . . . . . . Spaces Dug 42 | . . . . . . . . . . . . . . . . . 4 . . . . . . 5 2 4 12 15 Terrain Destroyed 195 | . . . . . . . 1 . . 2 . 2 7 9 6 . 24 5 9 16 . . 3 9 47 5 18 32 Melee . | . . . . . . . . . . . . . . . . . . . . . . . . . . . . . Projectile 164 | . . . . . . . 1 . . 2 . 2 7 9 6 . 24 5 9 16 . . 3 9 16 5 18 32 AOE 31 | . . . . . . . . . . . . . . . . . . . . . . . . . 31 . . . Terrain Rammed . | . . . . . . . . . . . . . . . . . . . . . . . . . . . . . Walls Destroyed . | . . . . . . . . . . . . . . . . . . . . . . . . . . . . . Machines Disabled . | . . . . . . . . . . . . . . . . . . . . . . . . . . . . . Actions | -11 -10 -10 -9 -9 -9 -8 -8 -7 -7 -7 -7 -6 -6 -6 -6 -6 -6 -5 -5 -5 -5 -5 -5 -4 -3 -2 -1 -1 --------- Run | Scr Mat Min Mat Min Exi Min Mat Fac Low Low Dat Pro Fac Low Low Zio Dee Pro Fac Ext Cet Arc Hub Fac Res Res Acc Com Total 10979 | 49 612 217 260 494 263 210 465 825 279 311 76 497 686 433 196 647 740 284 247 565 113 95 144 305 724 271 375 596 Wait 559 | . 5 . 8 4 . 4 11 14 . 1 . 10 55 32 12 40 98 86 1 37 12 2 11 1 56 1 1 57 Move 9335 | 42 535 204 201 460 261 173 404 744 268 301 76 470 578 369 160 601 551 162 213 411 84 69 126 226 599 248 325 474 Hop . | . . . . . . . . . . . . . . . . . . . . . . . . . . . . . Pick Up 34 | . 4 1 . . 1 . 2 . . . . . 1 2 . 1 3 2 2 4 . 3 . 3 2 1 1 1 Fast Attach 101 | 6 7 . 6 1 . 1 3 6 5 . . 2 7 2 1 1 15 . 2 5 3 1 1 3 9 6 2 6 Attach 2 | . . . . . . . . . . . . . . . . . . . 1 . . . . . . . 1 . Detach . | . . . . . . . . . . . . . . . . . . . . . . . . . . . . . Swap 14 | . 1 . . . . . . 1 . . . . 2 . . . . . 2 1 . . . . 4 . 3 . Drop 114 | 1 7 1 5 1 1 . 3 6 5 . . 1 7 2 1 2 18 2 3 6 3 4 . 4 11 6 9 5 Fire 485 | . 40 6 31 22 . 19 29 33 1 7 . 10 28 15 13 . 23 15 12 36 7 11 6 19 29 9 15 49 Melee . | . . . . . . . . . . . . . . . . . . . . . . . . . . . . . Ram . | . . . . . . . . . . . . . . . . . . . . . . . . . . . . . Kick . | . . . . . . . . . . . . . . . . . . . . . . . . . . . . . Crush . | . . . . . . . . . . . . . . . . . . . . . . . . . . . . . Escape Stasis 30 | . . . . . . . . . . . . . . . . . . . . 4 . . . 26 . . . . Rewire 39 | . . . . . . . . . . . . . . . . . . . . 39 . . . . . . . . Trap . | . . . . . . . . . . . . . . . . . . . . . . . . . . . . . Miscellaneous 266 | . 13 5 9 6 . 13 13 21 . 2 . 4 8 11 9 2 32 17 11 22 4 5 . 23 14 . 18 4 Route ------- -11/Scrapyard -10/Materials (discovered 5 exits: *Mat x3 / [*Min x2]) -10/Mines -9/Materials (discovered 4 exits: *Mat x2 / *Min x2) -9/Mines (discovered 2 exits: *Mat / *Exi) -9/Exiles -8/Mines -8/Materials -7/Factory (discovered 5 exits: *Fac / Sto x2 / *Low x2) -7/Lower Caves (discovered 2 exits: [*Low] / *Zio) -7/Lower Caves (discovered 2 exits: *Fac / *Dat) -7/Data Miner -6/Proximity Caves -6/Factory (discovered 6 exits: Fac x4 / *Low x2) -6/Lower Caves -6/Lower Caves -6/Zion (discovered 2 exits: *Dee / [*Pro]) -6/Deep Caves -5/Proximity Caves -5/Factory -5/Extension (discovered 2 exits: *Fac / *Cet) -5/Cetus -5/Archives (discovered 3 exits: *Fac / *Hub x2) -5/Hub_04(d) -4/Factory (discovered 2 exits: *Res x2) -3/Research (discovered 3 exits: *Res x3) -2/Research -1/Access -1/Command History --------- Turn | Location | Event 8 | -11/Scrapyard | Discovered new exit (range 16) 10 | -11/Scrapyard | Upgraded with Propulsion slot (x1) 10 | -11/Scrapyard | Upgraded with Utility slot (x1) 10 | -11/Scrapyard | Upgraded with Weapon slot (x1) 55 | -11/Scrapyard | Entered Materials 222 | -10/Materials | Discovered new exit (range 7) 268 | -10/Materials | Discovered new exit (range 10) 331 | -10/Materials | Discovered new exit (range 11) 391 | -10/Materials | Discovered new exit (range 7) 464 | -10/Materials | Discovered new exit (range 4) 597 | -10/Materials | Build established: Scavenger-Mutant 729 | -10/Materials | Reached level 2 732 | -10/Materials | Upgraded with Weapon slot (x1) 815 | -10/Materials | Entered Mines 839 | -10/Mines | Identified exit to Materials 857 | -10/Mines | Learned location of 1 exit from Materials 1060 | -10/Mines | Found a damaged Exp. Sensor Array with a note attached 1086 | -10/Mines | Entered Materials 1087 | -9/Materials | Identified exit to Materials 1088 | -9/Materials | Reached level 3 1088 | -9/Materials | Reached level 4 1092 | -9/Materials | Build established: Scavenger-Gunner 1104 | -9/Materials | Upgraded with Propulsion slot (x1) 1104 | -9/Materials | Upgraded with Utility slot (x1) 1237 | -9/Materials | Discovered new exit (range 9) 1257 | -9/Materials | Reached level 5 1338 | -9/Materials | Discovered new exit (range 18) 1387 | -9/Materials | Discovered exit to Materials (range 18) 1393 | -9/Materials | Entered Mines 1395 | -9/Mines | Reached level 6 1414 | -9/Mines | Learned Materials terminal intel 1443 | -9/Mines | Met a Derelict testing a Signal Generator 1526 | -9/Mines | Discovered exit to Materials (range 5) 1632 | -9/Mines | Found a hidden stash of uninstalled traps 1780 | -9/Mines | Deemed a non-threat by the Exiles lab entrance 1780 | -9/Mines | Discovered new exit (range 5) 1785 | -9/Mines | Entered Exiles 1813 | -9/Exiles | Met 8R-AWN 1833 | -9/Exiles | Met EX-HEX 1883 | -9/Exiles | Met EX-DEC 1904 | -9/Exiles | Learned location of Zion (-6) 1921 | -9/Exiles | Met EX-BIN 1940 | -9/Exiles | Reached level 7 1940 | -9/Exiles | Aligned with FarCom system 1941 | -9/Exiles | Given EX-Vault access code 1954 | -9/Exiles | Opened EX-Vault 1959 | -9/Exiles | Found Superbattery 1972 | -9/Exiles | Warned to stay clear of 0b10 Research branches 2006 | -9/Exiles | Discovered new exit (range 14) 2014 | -9/Exiles | Left Exiles lab with Superbattery 2014 | -9/Exiles | Entered Mines 2150 | -8/Mines | Reached level 8 2184 | -8/Mines | Discovered exit to Materials (range 5) 2192 | -8/Mines | Entered Materials 2193 | -8/Materials | Loaded intel: 12 terminal locations 2194 | -8/Materials | Reached level 9 2194 | -8/Materials | Upgraded with Utility slot (x1) 2434 | -8/Materials | Reached level 10 2488 | -8/Materials | Destroyed 8 combat bots 2492 | -8/Materials | Discovered new exit (range 11) 2524 | -8/Materials | Entered Factory 2526 | -7/Factory | Reached level 11 2647 | -7/Factory | Discovered new exit (range 7) 2695 | -7/Factory | Reached level 12 2697 | -7/Factory | Upgraded with Utility slot (x1) 2780 | -7/Factory | Identified exit to Storage 2780 | -7/Factory | Identified exit to Lower Caves 2794 | -7/Factory | Destroyed 7 combat bots 2829 | -7/Factory | Build established: Hacker-Gunner 2904 | -7/Factory | Reached level 13 2904 | -7/Factory | Upgraded with Power slot (x1) 2904 | -7/Factory | Upgraded with Propulsion slot (x1) 2924 | -7/Factory | First assault squad dispatched 3052 | -7/Factory | Entered Lower Caves 3062 | -7/Lower Caves | A Derelict revealed a hidden shortcut to a safe place 3082 | -7/Lower Caves | Encountered a Warlord checkpoint 3256 | -7/Lower Caves | Discovered new exit (range 7) 3263 | -7/Lower Caves | Entered another Lower Caves area 3265 | -7/Lower Caves | Reached level 14 3290 | -7/Lower Caves | Discovered new exit (range 6) 3295 | -7/Lower Caves | Learned Factory stockpile data 3428 | -7/Lower Caves | Encountered a Warlord checkpoint 3445 | -7/Lower Caves | Discovered new exit (range 5) 3447 | -7/Lower Caves | Entered Data Miner 3447 | -7/Data Miner | Discovered new exit (range 6) 3456 | -7/Data Miner | Met Data Miner 3466 | -7/Data Miner | Learned location of Section 7 (-3) 3466 | -7/Data Miner | Acquired the access code to Warlord's prototype stash 3474 | -7/Data Miner | Received God Mode back door access code from Data Miner 3487 | -7/Data Miner | Entered Proximity Caves 3489 | -6/Proximity Caves | Reached level 15 3489 | -6/Proximity Caves | Upgraded with Utility slot (x1) 3505 | -6/Proximity Caves | Escorted by Enhanced Grunt 3614 | -6/Proximity Caves | Learned location of 1 exit from Factory 3665 | -6/Proximity Caves | Spotted B-75 Beast 3677 | -6/Proximity Caves | Destroyed B-75 Beast 3718 | -6/Proximity Caves | Discovered new exit (range 17) 3777 | -6/Proximity Caves | Entered Factory 3777 | -6/Factory | Accompanied by 1 ally 3778 | -6/Factory | Identified exit to Lower Caves 3779 | -6/Factory | Reached level 16 3894 | -6/Factory | Identified exit to Factory 4001 | -6/Factory | Reached level 17 4120 | -6/Factory | Fabricated Cmb. Airjet (x2) 4240 | -6/Factory | Entered Lower Caves 4240 | -6/Lower Caves | Accompanied by 1 ally 4312 | -6/Lower Caves | Reached level 18 4317 | -6/Lower Caves | Upgraded with Weapon slot (x1) 4408 | -6/Lower Caves | Discovered new exit (range 11) 4416 | -6/Lower Caves | Identified exit to Lower Caves 4427 | -6/Lower Caves | Found Alien Artifact 4446 | -6/Lower Caves | Attracted the attention of an 0b10 checkpoint 4488 | -6/Lower Caves | Learned location of Extension (-5) 4565 | -6/Lower Caves | Entered another Lower Caves area 4565 | -6/Lower Caves | Accompanied by 1 ally 4636 | -6/Lower Caves | Encountered a Warlord checkpoint 4715 | -6/Lower Caves | Discovered new exit (range 7) 4720 | -6/Lower Caves | Identified exit to Zion 4728 | -6/Lower Caves | Entered Zion 4728 | -6/Zion | Accompanied by 1 ally 4730 | -6/Zion | Reached level 19 4773 | -6/Zion | Discovered new exit (range 13) 4854 | -6/Zion | Given the Hacking Drone Bay 4926 | -6/Zion | Given A8's code to call for help 4943 | -6/Zion | Acquired unknown access codes intercepted by a Zionite 5026 | -6/Zion | Learned location of 1 exit from Proximity Caves 5102 | -6/Zion | Opened final containment barrier to the Deep Caves 5110 | -6/Zion | Discovered new exit (range 5) 5112 | -6/Zion | Saw the warning signs outside the Deep Caves entrance 5113 | -6/Zion | Identified exit to Deep Caves 5153 | -6/Zion | Entered Deep Caves 5153 | -6/Deep Caves | Accompanied by 1 ally 5275 | -6/Deep Caves | Attacked by Z-Imprinter 5292 | -6/Deep Caves | Destroyed Z-Imprinter 5328 | -6/Deep Caves | Found Prototype Protection 5328 | -6/Deep Caves | Identified Zio. Weapon Casing 5333 | -6/Deep Caves | Found Prototype Device 5333 | -6/Deep Caves | Identified Zio. Metafield Generator 5387 | -6/Deep Caves | Z-Facility disabled 5482 | -6/Deep Caves | Discovered new exit (range 11) 5539 | -6/Deep Caves | Identified exit to Proximity Caves 5590 | -6/Deep Caves | Entered Proximity Caves 5590 | -5/Proximity Caves | Accompanied by 1 ally 5592 | -5/Proximity Caves | Reached level 20 5592 | -5/Proximity Caves | Spotted B-75 Beast 5598 | -5/Proximity Caves | Destroyed B-75 Beast 5698 | -5/Proximity Caves | Destroyed 13 combat bots 5728 | -5/Proximity Caves | Build established: Scavenger-Sprinter 5779 | -5/Proximity Caves | Entered Factory 5780 | -5/Factory | Identified exit to Extension 5781 | -5/Factory | Reached level 21 5781 | -5/Factory | Upgraded with Utility slot (x1) 5887 | -5/Factory | Entered Extension 5889 | -5/Extension | Reached level 22 5896 | -5/Extension | Rescued a captive Derelict 5965 | -5/Extension | Rescued a captive Derelict 6088 | -5/Extension | Spotted B-75 Beast 6089 | -5/Extension | Allies destroyed B-75 Beast 6093 | -5/Extension | Spotted B-75 Beast 6099 | -5/Extension | Destroyed B-75 Beast 6146 | -5/Extension | Rescued a captive Derelict 6147 | -5/Extension | Rescued a captive Derelict 6166 | -5/Extension | Rescued a captive Derelict 6207 | -5/Extension | Build established: Scavenger-Gunner 6214 | -5/Extension | Rescued A7 6238 | -5/Extension | Discovered new exit (range 10) 6239 | -5/Extension | Discovered new exit (range 7) 6243 | -5/Extension | Disrupted transfer network 6247 | -5/Extension | Reached level 23 6250 | -5/Extension | Upgraded with Utility slot (x1) 6270 | -5/Extension | Identified exit to Cetus 6279 | -5/Extension | Destroyed 11 combat bots 6288 | -5/Extension | Entered Cetus 6288 | -5/Cetus | Accompanied by 1 ally (A7) 6293 | -5/Cetus | Acquired a Cetus Manufacturing Module code from A7 6296 | -5/Cetus | Spotted Cetus Guard 6296 | -5/Cetus | Spotted Cetus Guard 6299 | -5/Cetus | Allies destroyed Cetus Guard 6300 | -5/Cetus | Spotted Cetus Guard 6301 | -5/Cetus | Spotted Cetus Guard 6305 | -5/Cetus | Destroyed Cetus Guard 6311 | -5/Cetus | Destroyed Cetus Guard 6311 | -5/Cetus | Destroyed Cetus Guard 6352 | -5/Cetus | Escorted A7 to Cetus Mainframe 6357 | -5/Cetus | Discovered new exit (range 18) 6365 | -5/Cetus | Identified exit to Archives 6369 | -5/Cetus | Entered Archives 6369 | -5/Archives | Accompanied by 1 ally (A7) 6374 | -5/Archives | Received a hacking code to weaken MAIN.C 6407 | -5/Archives | Discovered new exit (range 18) 6417 | -5/Archives | Discovered new exit (range 18) 6432 | -5/Archives | Discovered new exit (range 18) 6464 | -5/Archives | Identified exit to Hub_04(d) 6465 | -5/Archives | Entered Hub_04(d) 6588 | -5/Hub_04(d) | Garrison activated, responded to threat 6623 | -5/Hub_04(d) | Discovered new exit (range 14) 6642 | -5/Hub_04(d) | Identified exit to Factory 6643 | -5/Hub_04(d) | Entered Factory 6645 | -4/Factory | Reached level 24 6757 | -4/Factory | Discovered new exit (range 18) 6795 | -4/Factory | Identified exit to Research 6828 | -4/Factory | Discovered exit to Research (range 8) 6916 | -4/Factory | Entered Research 6918 | -3/Research | Reached level 25 6918 | -3/Research | Reached level 26 6925 | -3/Research | Upgraded with Propulsion slot (x1) 6955 | -3/Research | Found Prototype Device 6955 | -3/Research | Identified EM Disruption Field 6959 | -3/Research | Found Prototype Processor 6959 | -3/Research | Identified Spectral Analyzer 7522 | -3/Research | Identified exit to Research 7705 | -3/Research | Reached level 27 7726 | -3/Research | Spotted B-86 Titan 7740 | -3/Research | Destroyed B-86 Titan 7756 | -3/Research | Entered another Research area 7758 | -2/Research | Reached level 28 7764 | -2/Research | Found Prototype Processor 7764 | -2/Research | Identified Exp. Melee Analysis Suite 7886 | -2/Research | Discovered new exit (range 15) 7914 | -2/Research | Identified exit to Access 7916 | -2/Research | Entered Access 7918 | -1/Access | Reached level 29 7918 | -1/Access | Reached level 30 7919 | -1/Access | Upgraded with Propulsion slot (x1) 8183 | -1/Access | Discovered new exit (range 8) 8186 | -1/Access | Entered Command 8188 | -1/Command | Reached level 31 8188 | -1/Command | Reached level 32 8220 | -1/Command | Found Prototype Processor 8220 | -1/Command | Identified Exp. Terrain Scan Processor 8364 | -1/Command | Disengaged cave seal 8384 | -1/Command | Reached level 33 8388 | -1/Command | Found Quantum Capacitor 8407 | -1/Command | Enhanced Grunt warped into view, answering call for help 8413 | -1/Command | Enhanced Grunt warped into view, answering call for help 8467 | -1/Command | Build established: Hacker-Gunner 8496 | -1/Command | Spotted M Guard 8496 | -1/Command | Spotted M Guard 8496 | -1/Command | Spotted Combat Programmer 8497 | -1/Command | Spotted Combat Programmer 8503 | -1/Command | Destroyed Combat Programmer 8509 | -1/Command | Destroyed Combat Programmer 8543 | -1/Command | Core integrity fell below 50% 8568 | -1/Command | Core integrity fell below 20% 8584 | -1/Command | Destroyed by M Guard with Hellfire Missile Launcher Last Messages --------------- 08527_ The unstable cave ceiling collapses. 08532_ Warlord D3-CKR destroyed. 08534_ The unstable cave ceiling collapses. 08537_ Imp. Phase Shifter destroyed. 08538_ The unstable cave ceiling collapses. 08546_ Knocked back. 08547_ The unstable cave ceiling collapses. 08549_ System corrupted: Enh. Quantum Rifle failed to cycle. 08550_ The unstable cave ceiling collapses. 08553_ S&GPU AODWP2 08557_ Knocked back. 08561_ The unstable cave ceiling collapses. 08562_ Knocked back. 08565_ The unstable cave ceiling collapses. 08567_ Knocked back. 08568_ Zio. Glidesys II destroyed. 08570_ The unstable cave ceiling collapses. 08572_ Knocked back. 08574_ The unstable cave ceiling collapses. Map ----- +----------------------------------------------------+ | ????????????????????????????????????##+###+####### | | ????????????????????????????????????# ?????? | | ????????????????????????????????????# ?????? | | ????????????????????????????????????# ????? | | ????????????????????????????????????# ????? | | ????????????????????????????????????# #### | | ????????????????????????????????????# # | | ????????????????????????????????????# + | | ?????????????????????????????????????########## | | ??????????????????????????????????????????????# | | ??????????????????????????????????????????????# | | ??????????????????????????????????????????????# | | ??????????????????????????????????????????????# | | ??????????????????????????????????????????????# | | ??????????????????????????????????????????????# | | ??????????????????????????????????????????????# | | ??????????????????????????????????????????????# | | ??????????????????????????????????????????????# | | ??????????????????????????????????????????????# | | ??????????????????????#######?????????????????# | | ???????????????######### # ####?#####????????# | | ?????????????### ## #?# #????????# | | ????????#+++##;; W W ### W ########## | | ????????# % + = | | ????????# Y + | | ????????# @ + | | ????????# Y + | | ????????# % % + | | ????????# ### # # W ## W ##########+## | | ????????###????# # ## #???# # | | ???????????????####### # # ######???# =# | | ????????????????????? # ##????????# # | | ????????????????????## # ###?????????# # | | ?????????????????????? #???????????# =# | | ??????????????????????##### ##???????????# # | | ???????????????????????????##????????????# # | | ?????????????????????????????????????????# # | | ?????????????????????????????????????????# # | | ?????????????????????????????????????????# # | | ?????????????????????????????????????????# # | | ???????????????????????????????????????########+## | | ???????????????????????????????????????# # | | ???????????????????????????????????????# T"" + | | ???????????????????????????????????????# """" #+## | | ???????????????????????????????????????# """" #??? | | ???????????????????????????????????????# """ #??? | | ???????????????????????????????????????# #??? | | ???????????????????????????????????????##+#####??? | | ???????????????????????????????????????## #??????? | | ??????????????????????????????????????##" #??????? | +----------------------------------------------------+ Best States ------------- Heat Dissipation 154 Energy Generation 60 Energy Capacity 2200 Matter Stores 300 Matter Capacity 300 Sight Range 26 Terrain Scan Density 10 Armor Coverage 400 Resistance: KI 40 Resistance: TH 40 Resistance: EX 40 Resistance: EM 20 Resistance: I 20 Resistance: S 20 Resistance: P 20 Weapon Shielding 100 Weapon Cycling 20 Phase Shifting 10 Evasion (%) 79 Targeting Accuracy 5 Armor Integrity Analysis 30 Particle Charging 25 Offensive Hacking 30 Defensive Hacking 15 Item Schematics ----------------- Imp. System Backup Module | -7/Factory | Hacked Mic. Nuclear Core | -7/Factory | Hacked Combat Drone Bay | -7/Data Miner | Free Lgt. Regenerative Plating | -7/Data Miner | Free Exp. Flexi-carbon Leg | -7/Data Miner | Free Exp. Terrain Scanner | -7/Data Miner | Free Exp. Transmission Jammer | -7/Data Miner | Free Plasma Sword | -7/Data Miner | Free Kinetic Spear | -7/Data Miner | Free Cmb. Airjet | -6/Factory | Hacked Cmb. Linear Gravjet | -2/Research | Hacked Robot Schematics ------------------ S-27 Virus | -7/Data Miner | Free G-50 Soldier | -7/Data Miner | Free L-41 Fighter | -7/Data Miner | Free I-36 Angel | -7/Data Miner | Free I-47 Archangel | -7/Data Miner | Free Fabricated ------------ Cmb. Airjet | x2 | -6/Factory Alien Tech Used ----------------- None Achievements -------------- None Challenges ------------ None RPGLIKE | -11 -10 -10 -9 -9 -9 -8 -8 -7 -7 -7 -7 -6 -6 -6 -6 -6 -6 -5 -5 -5 -5 -5 -5 -4 -3 -2 -1 -1 --------- Run | Scr Mat Min Mat Min Exi Min Mat Fac Low Low Dat Pro Fac Low Low Zio Dee Pro Fac Ext Cet Arc Hub Fac Res Res Acc Com Levels Raised 32 | . 1 . 3 1 1 1 2 3 . 1 . 1 2 1 . 1 . 1 1 2 . . . 1 3 1 2 3 XP Earned 52298 | 4000 2025 750 4242 1705 350 1700 3715 4106 650 951 453 1495 2735 1212 815 244 517 2223 1420 1858 264 219 419 1754 3386 2540 2635 3915 XP Spent 51805 | 3920 1300 . 4640 . 3075 1250 3100 4640 . 1270 . 1700 2800 1730 . 1400 . . 2900 2820 . . . 1885 3015 . 5400 4960 Upgrades 102 | 11 2 . 16 . 6 5 5 7 . 2 . 1 3 4 . 2 . . 2 3 . . . 5 3 . 4 21 Power Slot 1 | . . . . . . . . 1 . . . . . . . . . . . . . . . . . . . . Propulsion Slot 5 | 1 . . 1 . . . . 1 . . . . . . . . . . . . . . . . 1 . 1 . Utility Slot 7 | 1 . . 1 . . . 1 1 . . . 1 . . . . . . 1 1 . . . . . . . . Weapon Slot 3 | 1 1 . . . . . . . . . . . . 1 . . . . . . . . . . . . . . Core Integrity 24 | . . . 4 . . . . 2 . . . . . . . . . . . . . . . 3 1 . . 14 Heat Dissipation 14 | 2 . . 4 . . . . . . 1 . . . 3 . . . . . 2 . . . . . . . 2 Energy Generation 3 | 1 . . . . . . . . . . . . 1 . . . . . . . . . . . . . . 1 Energy Storage 2 | . . . . . 2 . . . . . . . . . . . . . . . . . . . . . . . Mass Support 4 | 1 . . . . 1 . . . . 1 . . . . . . . . . . . . . . . . 1 . Inventory Capacity 6 | 3 . . . . . . . . . . . . 2 . . . . . . . . . . . 1 . . . Sight Range 2 | . . . 2 . . . . . . . . . . . . . . . . . . . . . . . . . Ranged Accuracy 8 | 1 1 . 2 . . . . . . . . . . . . 1 . . 1 . . . . . . . 2 . Hack Attack % 4 | . . . . . . 1 1 . . . . . . . . 1 . . . . . . . 1 . . . . Hack Defense % 3 | . . . . . . 1 1 . . . . . . . . . . . . . . . . 1 . . . . KI Resistance % 4 | . . . . . 1 1 1 1 . . . . . . . . . . . . . . . . . . . . TH Resistance % 4 | . . . . . . 2 1 1 . . . . . . . . . . . . . . . . . . . . EX Resistance % 4 | . . . . . . . . . . . . . . . . . . . . . . . . . . . . 4 TH Damage % 4 | . . . 2 . 2 . . . . . . . . . . . . . . . . . . . . . . . Protomatter Created 3913 | . 115 87 147 96 . 171 228 259 . 41 . . 124 145 163 . 198 226 232 661 124 268 125 240 155 59 49 . Integrity Restored 4854 | . 219 84 147 101 . 222 208 372 . 20 . 81 153 160 167 27 658 253 199 363 81 98 . 505 287 . 374 75 Core 3535 | . 135 62 84 77 . 171 153 272 . 16 . 71 105 105 129 . 521 197 144 195 36 72 . 399 220 . 314 57 Parts 1319 | . 84 22 63 24 . 51 55 100 . 4 . 10 48 55 38 27 137 56 55 168 45 26 . 106 67 . 60 18 Protomatter Decayed 2252 | . 3 . 54 29 . 77 83 126 . 33 . 28 32 82 70 . 26 125 52 625 124 . 125 69 . 59 23 407 Game ------ Seed DecoyGatlingBlade Manual? 0 Play Time 02:01:16 Cumulative 123.1 hours Start 2021.08.04 @ 16:30:49 End 2021.08.04 @ 19:14:39 Sessions 1 Manual Loads 0 Difficulty Adventurer Special Mode Winter2019/RPGLIKE Game No. 99 Rogue 14 Adventurer 83 Explorer 2 Win Type - Total 6 Types 3/0/1/0/0/1/0/1/0 Lore% 70 Gallery% 75 Achievement% 69 Wizard Run 0 Options --------- ASCII 0 Keyboard 0 Movement Mouse Keybinds 0 Fullscreen 1 Font 12/Smallcaps Map View 83x54 Tactical HUD 1 Map Filters NONE Filters NONE Steam 1 RUN: 6996adf3-5e38-4923-987c-b13ab1bb67c4